bitfinex/quotes_SOLUSD_20240809
["timestamp","ask_amount","ask_price","bid_price","bid_amount"]
[1723228826944,28.68,153.16,153.1,6.5313]
[1723228827147,28.68,153.16,153.05,35.0696]
[1723228827349,28.68,153.16,153.06,0.25098]
[1723228827543,28.68,153.16,153.1,6.5316]
[1723228827544,6.5296,153.15,153.1,6.5316]
[1723228827740,35.2099,153.14,153.1,6.5316]
[1723228827970,35.2099,153.14,153.05,6.3896]
[1723228828141,35.2099,153.14,153.09,6.532]
[1723228828964,28.68,153.1,153.06,6.5332]
[1723228829145,35.2116,153.1,153.05,6.5334]
[1723228829348,6.5322,153.09,153.04,6.5341]
[1723228829566,35.2125,153.08,153.03,6.5345]
[1723228829849,28.68,153.06,153.02,6.535]
[1723228830053,28.68,153.06,153.01,6.5354]
[1723228830054,35.2134,153.06,153.01,6.5354]
[1723228830379,28.68,153.06,153.02,6.5349]
[1723228830542,28.68,153.06,152.97,22.3161]
[1723228830752,28.68,153.06,153.03,6.5342]
[1723228830958,28.68,153.06,152.97,22.3161]
[1723228830959,28.68,153.06,153.01,6.5351]
[1723228831158,35.2134,153.06,153.02,6.535]
[1723228831572,28.68,153.06,153.02,6.535]
[1723228831874,43.73398,153.07,153.02,6.535]
[1723228832069,6.65929,153.05,153.0,6.5355]
[1723228832277,0.12549,153.04,153.01,6.5354]
[1723228832977,50.42546293,153.07,153.02,6.5346]
[1723228833163,50.42546293,153.07,152.97,6.6476]
[1723228833164,6.81707293,153.07,152.97,6.6476]
[1723228833360,6.533,153.07,153.02,6.5347]
[1723228833671,6.533,153.07,153.02,6.535]
[1723228834380,6.533,153.07,152.97,6.6476]
[1723228834381,0.12549,153.08,152.97,43.5976]
[1723228834584,6.5334,153.06,153.01,6.5351]
[1723228834886,6.5338,153.05,153.01,6.5351]
[1723228835381,6.65889,153.06,153.01,6.5351]
[1723228835576,6.533,153.07,152.97,6.6476]
[1723228835880,0.12549,153.07,153.03,6.5346]
[1723228836054,0.12549,153.07,153.04,6.5342]
[1723228836660,6.65839,153.07,152.97,43.5976]
[1723228836861,6.5339,153.05,152.97,6.6476]
[1723228837177,6.65899,153.06,153.01,6.5354]
[1723228837364,6.5335,153.06,153.01,6.5354]
[1723228838182,6.5335,153.06,152.97,6.6476]
[1723228838183,43.85977,153.07,152.97,6.6476]
[1723228838387,0.37647,153.07,153.03,6.5346]
[1723228838686,45.25098,153.07,153.03,6.5346]
[1723228838867,26.5326,153.08,153.04,6.5342]
[1723228839589,26.5326,153.08,153.03,6.5345]
[1723228839973,15.4445,153.1,153.05,6.5334]
[1723228839974,21.9764,153.1,153.05,6.5334]
[1723228840171,15.4445,153.1,153.06,6.5333]
[1723228840379,43.4804,153.13,153.08,6.5324]
[1723228840689,15.0385,153.14,153.08,6.5324]
[1723228840865,15.0385,153.14,153.01,37.07549]
[1723228841187,6.5324,153.09,153.03,6.5342]
[1723228841386,36.95,153.09,153.03,6.5342]
[1723228841796,6.5326,153.08,153.03,6.5342]
[1723228842292,36.95,153.09,153.0,16.4119]
[1723228842293,43.4822,153.09,153.04,6.5341]
[1723228842792,36.95,153.11,153.05,6.5337]
[1723228842978,6.5321,153.09,153.04,6.5341]
[1723228843168,36.95,153.09,153.03,6.5346]
[1723228843490,6.533,153.07,153.03,6.5346]
[1723228843666,6.5325,153.08,153.03,6.5346]
[1723228844082,43.4822,153.09,153.04,6.5341]
[1723228844289,0.37647,153.1,153.0,16.4119]
[1723228844482,6.5321,153.09,153.04,6.5341]
[1723228845394,6.5321,153.09,153.0,16.4119]
[1723228845395,0.25098,153.08,153.0,16.4119]
[1723228845585,6.5333,153.07,153.0,16.4119]
[1723228845892,6.5333,153.07,153.03,6.5345]
[1723228846091,43.4833,153.07,153.0,16.4119]
[1723228846295,6.5334,153.06,152.97,6.6476]
[1723228846480,36.95,153.05,152.97,6.6476]
[1723228846684,43.4839,153.05,153.0,6.5359]
[1723228846887,36.95,153.05,153.01,6.5354]
[1723228847084,36.95,153.05,153.02,6.5349]
[1723228847578,21.95588,153.06,153.01,6.5354]
[1723228848087,43.73478,153.05,153.0,6.5358]
[1723228848283,37.20098,153.05,153.01,6.5353]
[1723228848497,21.83029,153.06,153.02,6.535]
[1723228849001,15.29689,153.06,153.02,6.535]
[1723228850099,15.1714,153.06,153.02,6.535]
[1723228850297,21.7047,153.06,152.97,6.6476]
[1723228850470,37.07549,153.07,153.03,6.5346]
[1723228850671,6.5325,153.08,152.98,0.12549]
[1723228850900,6.5325,153.08,153.03,6.5346]
[1723228851096,6.5332,153.07,153.02,6.535]
[1723228851291,43.4832,153.07,153.02,6.535]
[1723228851793,43.4832,153.07,153.03,6.5346]
[1723228851794,35.2632,153.07,153.03,6.5346]
[1723228852997,6.5334,153.06,153.02,6.535]
[1723228853799,35.263,153.07,153.02,6.535]
[1723228854190,28.73,153.07,153.03,6.5344]
[1723228854393,28.85549,153.09,153.05,6.5337]
[1723228855397,6.5318,153.1,153.05,6.5337]
[1723228855599,6.5322,153.09,153.05,6.5337]
[1723228855808,6.5322,153.09,153.04,6.5341]
[1723228856599,28.73,153.09,152.98,73.98098]
[1723228856822,6.5338,153.05,153.01,6.5354]
[1723228857117,28.73,153.07,153.03,6.5343]
[1723228857284,35.263,153.07,153.03,6.5343]
[1723228857614,35.263,153.07,153.02,6.5349]
[1723228857984,28.73,153.07,153.01,6.5354]
[1723228858301,28.73,153.07,153.03,6.5345]
[1723228858609,35.2622,153.09,152.99,0.12549]
[1723228858784,6.5325,153.08,153.04,6.5341]
[1723228859300,6.533,153.07,153.03,6.5345]
[1723228859708,6.533,153.07,152.97,6.6476]
[1723228859709,6.5334,153.06,153.01,6.5354]
[1723228860502,6.5334,153.06,153.01,6.5351]
[1723228860503,28.73,153.05,153.01,6.5351]
[1723228860685,35.2641,153.05,153.0,6.5358]
[1723228860884,6.5342,153.04,153.0,6.5358]
[1723228861088,35.2646,153.03,152.97,6.6476]
[1723228861384,28.73,153.03,152.99,6.5363]
[1723228861802,35.2648,153.03,152.98,6.5366]
[1723228862915,28.73,153.03,153.0,6.5358]
[1723228863086,28.73,153.05,152.97,6.6476]
[1723228863406,28.73,153.05,153.02,6.535]
[1723228863616,28.73,153.05,153.01,6.5354]
[1723228863984,22.9409,153.06,153.03,6.5343]
[1723228863985,16.4075,153.06,153.03,6.5343]
[1723228864206,35.2638,153.05,153.0,6.5356]
[1723228864812,6.0018,153.09,153.02,6.535]
[1723228864813,35.263,153.07,153.02,6.535]
[1723228865110,16.185,153.1,153.07,6.5326]
[1723228865309,35.5524061,153.13,153.09,6.5319]
[1723228865692,21.7766,153.14,153.09,6.532]
[1723228865893,15.2463,153.14,153.11,6.5311]
[1723228866096,6.5303,153.14,153.04,34.7476]
[1723228866294,6.5304,153.13,153.08,6.5322]
[1723228866610,6.5304,153.13,153.04,6.0176]
[1723228866611,35.2604,153.13,153.04,6.0176]
[1723228866813,6.5308,153.12,153.08,6.5324]
[1723228867108,6.5309,153.12,153.07,6.5329]
[1723228867512,28.73,153.11,153.07,6.5329]
[1723228868515,6.5317,153.1,153.05,6.5334]
[1723228868737,35.2616,153.11,153.06,6.5331]
[1723228869096,35.2616,153.11,153.04,6.0176]
[1723228869097,28.73,153.09,153.05,6.5337]
[1723228869815,28.73,153.09,153.06,6.5333]
[1723228870514,28.73,153.09,153.05,6.5337]
[1723228871601,28.73,153.09,153.06,6.5332]
[1723228872901,28.73,153.09,153.05,6.5337]
[1723228873215,28.73,153.09,153.06,6.5333]
[1723228874911,28.73,153.09,153.07,6.5328]
[1723228875112,28.73,153.11,153.07,6.5328]
[1723228875704,28.73,153.11,153.02,28.73]
[1723228875911,28.73,153.13,153.09,6.532]
[1723228876425,35.2604,153.13,153.09,6.532]
[1723228876722,35.2604,153.13,153.03,0.25098]
[1723228876927,28.73,153.11,153.07,6.5329]
[1723228879121,28.73,153.11,153.08,6.5324]
[1723228879525,35.2607,153.13,153.08,6.5324]
[1723228880915,28.73,153.11,153.07,6.5328]
[1723228881211,6.5322,153.09,153.0,35.0376]
[1723228881419,28.73,153.09,153.05,6.5337]
[1723228881826,28.73,153.09,153.0,35.0376]
[1723228881827,28.73,153.09,153.0,6.3076]
[1723228882021,28.73,153.05,152.99,6.5359]
[1723228882325,28.73,153.03,152.96,6.3059]
[1723228883230,28.73,153.03,153.0,6.5359]
[1723228884203,28.73,153.03,152.96,6.3059]
[1723228884729,28.73,153.03,153.01,6.5354]
[1723228885106,45.0572,153.12,153.04,6.5342]
[1723228885311,28.73,153.07,153.04,6.5342]
[1723228885812,28.73,153.07,153.03,6.5345]
[1723228886207,35.2629,153.07,153.03,6.5345]
[1723228886408,35.2624,153.09,153.04,6.5341]
[1723228887110,35.2624,153.09,152.99,0.12549]
[1723228887111,35.2624,153.09,153.05,6.5337]
[1723228887635,6.5326,153.08,153.03,6.5345]
[1723228888103,35.2621,153.09,153.04,6.5341]
[1723228889311,28.73,153.11,153.05,1.30674995]
[1723228889514,35.2607,153.13,153.08,6.5321]
[1723228890608,6.5308,153.12,153.08,6.5321]
[1723228890808,28.73,153.11,153.03,6.4865]
[1723228891005,6.532,153.1,153.05,6.5337]
[1723228891243,6.534,153.05,153.0,6.5359]
[1723228891928,28.73,153.07,153.01,6.5353]
[1723228891929,6.5334,153.06,153.01,6.5353]
[1723228892134,28.73,153.05,153.01,6.5353]
[1723228892440,28.73,153.03,153.0,6.5359]
[1723228893328,0.25098,153.06,153.01,6.5351]
[1723228893329,28.73,153.06,153.01,6.5351]
[1723228893723,36.95,153.07,153.01,6.5351]
[1723228894342,51.5337,153.06,153.01,6.5351]
[1723228894510,51.65919,153.06,153.01,6.5351]
[1723228894919,6.5337,153.06,152.94,36.95]
[1723228895116,6.5337,153.06,153.01,6.5352]
[1723228895310,6.5337,153.06,153.01,6.5354]
[1723228895829,36.95,153.05,153.0,6.5355]
[1723228896037,37.07549,153.05,152.99,6.5362]
[1723228896218,6.5343,153.04,152.99,6.5362]
[1723228897649,43.4838,153.05,153.0,6.5358]
[1723228898759,6.5343,153.04,153.0,6.5358]
[1723228899747,43.4838,153.05,153.0,6.5358]
[1723228900242,43.4838,153.05,153.01,6.5353]
[1723228900443,43.4838,153.05,153.0,6.5358]
[1723228900846,6.5343,153.04,153.0,6.5358]
[1723228901948,43.4838,153.05,153.0,6.5358]
[1723228903145,43.4838,153.05,152.94,0.12549]
[1723228903347,43.4838,153.05,153.01,6.5353]
[1723228904249,36.95,153.05,153.02,6.535]
[1723228904463,16.1719,153.08,152.98,6.2778]
[1723228904758,43.4824,153.09,153.0,15.737]
[1723228904929,43.4824,153.09,153.01,1.30676807]
[1723228905123,43.4824,153.09,153.0,15.737]
[1723228905124,6.5325,153.08,153.03,6.5343]
[1723228905345,43.4822,153.09,153.04,6.5341]
[1723228905523,43.4822,153.09,153.03,6.5345]
[1723228905524,36.95,153.09,153.03,6.5345]
[1723228906853,6.5326,153.08,153.03,6.5345]
[1723228907845,6.5329,153.07,153.03,6.5345]
[1723228908041,6.5326,153.08,153.04,6.534]
[1723228908238,36.95,153.09,153.03,6.5346]
[1723228908441,6.5325,153.08,153.04,6.5341]
[1723228909434,36.95,153.13,153.06,6.5332]
[1723228909637,6.5313,153.11,153.06,6.5332]
[1723228909840,6.5313,153.11,153.07,6.5328]
[1723228910545,6.5313,153.11,153.06,6.5332]
[1723228910752,6.5317,153.1,153.06,6.5332]
[1723228911660,6.5323,153.09,153.05,12.9959]
[1723228912033,43.4823,153.09,153.04,6.5341]
[1723228912547,43.4823,153.09,153.05,6.5338]
[1723228912757,6.5325,153.08,153.04,6.5342]
[1723228913340,36.95,153.09,153.05,6.5336]
[1723228913536,6.5317,153.1,153.06,6.5333]
[1723228914347,6.5317,153.1,153.05,6.5336]
[1723228915144,36.95,153.07,153.01,6.5074]
[1723228915452,43.483,153.07,153.02,6.535]
[1723228915769,28.74,153.06,153.03,6.5346]
[1723228915950,28.74,153.06,153.01,6.5074]
[1723228916270,28.74,153.06,153.0,15.737]
[1723228916271,28.74,153.04,153.0,6.5356]
[1723228916473,28.74,153.04,153.01,6.5354]
[1723228917052,28.74,153.06,152.97,6.4322]
[1723228917366,28.74,153.06,152.98,0.12549]
[1723228917583,28.74,153.06,153.02,6.535]
[1723228917941,28.74,153.04,153.01,6.5354]
[1723228918256,28.74,153.04,152.99,6.5362]
[1723228918458,35.2743,153.04,153.0,6.5358]
[1723228918652,28.74,153.04,153.0,6.5358]
[1723228918970,28.74,153.04,153.01,6.5354]
[1723228919478,28.74,153.04,153.03,6.5346]
[1723228919674,28.74,153.06,153.03,6.5346]
[1723228919843,35.2735,153.06,152.97,6.4322]
[1723228920041,35.2735,153.06,153.01,6.5354]
[1723228920544,6.5339,153.05,153.01,6.5354]
[1723228921367,35.2734,153.06,153.01,6.5354]
[1723228921567,28.74,153.06,152.98,0.12549]
[1723228921971,35.2735,153.06,153.01,6.5353]
[1723228922275,35.2736,153.06,152.98,0.12549]
[1723228923441,28.74,153.06,153.02,6.5349]
[1723228924643,28.74,153.06,152.98,0.12549]
[1723228924843,6.5338,153.05,152.98,0.25098]
[1723228925077,35.2734,153.06,152.98,0.25098]
[1723228925372,35.2734,153.06,153.01,6.5352]
[1723228925682,6.533,153.07,153.02,6.535]
[1723228925979,35.273,153.07,153.02,6.535]
[1723228926348,6.5334,153.06,153.01,6.5354]
[1723228926654,28.74,153.07,153.01,6.5354]
[1723228926947,6.5335,153.06,153.01,6.5354]
[1723228928451,35.273,153.07,153.02,6.5349]
[1723228928847,6.5334,153.06,153.02,6.5349]
[1723228929071,6.5338,153.05,152.98,0.12549]
[1723228929379,35.2738,153.05,153.0,6.5355]
[1723228929566,35.2738,153.05,152.98,0.12549]
[1723228929763,28.74,153.05,153.02,6.535]
[1723228930074,35.2732,153.07,153.02,6.535]
[1723228930654,35.273,153.07,152.98,0.25098]
[1723228931078,28.74,153.07,152.98,0.12549]
[1723228931288,28.74,153.05,153.0,6.5358]
[1723228932486,6.5342,153.04,152.99,6.5363]
[1723228933085,6.5362,153.0,152.95,6.5377]
[1723228933391,6.5362,153.0,152.96,6.5376]
[1723228934091,35.2776,152.97,152.92,6.539]
[1723228934953,28.74,152.93,152.87,16.5087]
[1723228935153,28.74,152.93,152.85,6.5283]
[1723228935753,15.966,152.94,152.85,6.5283]
[1723228936078,28.74,152.96,152.86,1.30791992]
[1723228936283,28.74,152.96,152.86,20.0]
[1723228936485,15.8525,152.98,152.86,20.0]
[1723228936486,28.74,152.94,152.86,20.0]
[1723228936661,28.74,152.94,152.9,6.5401]
[1723228937657,28.74,152.96,152.86,1.43351812]
[1723228937998,44.5925,152.98,152.89,0.12549]
[1723228938199,44.0325,153.02,152.98,6.5366]
[1723228938378,44.0325,153.02,152.99,6.5363]
[1723228939278,44.0325,153.02,152.97,6.5369]
[1723228939481,28.74,153.04,152.99,6.5362]
[1723228939681,28.74,153.04,152.94,0.12549]
[1723228939682,44.0325,153.06,153.0,1.30716875]
[1723228939885,44.0325,153.06,153.02,6.535]
[1723228940408,44.0325,153.06,152.96,0.12549]
[1723228940566,6.5342,153.04,152.96,0.50196]
[1723228940769,6.5338,153.05,153.0,6.5358]
[1723228941093,44.0325,153.06,153.01,6.5355]
[1723228941279,44.0325,153.06,153.02,6.5349]
[1723228941864,45.3048,153.1,153.03,1.30692638]
[1723228942172,45.3048,153.1,152.99,28.74]
[1723228942173,51.8368,153.1,153.05,6.5337]
[1723228942699,6.5321,153.09,153.04,6.5341]
[1723228942862,28.74,153.08,153.0,1.30674868]
[1723228943064,28.74,153.08,153.03,6.5344]
[1723228943299,28.74,153.08,152.98,0.12549]
[1723228943300,28.74,153.08,153.04,7.84072414]
[1723228943501,45.3048,153.1,153.06,6.5333]
[1723228943674,51.8365,153.1,153.05,6.5337]
[1723228943996,51.8365,153.1,153.01,34.8134]
[1723228943997,6.5321,153.09,153.04,6.5341]
[1723228944201,6.5327,153.08,153.02,6.5347]
[1723228944371,28.74,153.08,153.04,6.5341]
[1723228944565,6.533,153.07,153.01,6.0734]
[1723228945213,6.533,153.07,153.02,6.5346]
[1723228945499,35.2726,153.08,153.03,6.5346]
[1723228945866,35.2726,153.08,153.01,6.0734]
[1723228946065,6.5321,153.09,153.04,6.5341]
[1723228946278,28.74,153.12,153.05,1.30669542]
[1723228946480,28.74,153.12,153.02,1.30656299]
[1723228946673,28.74,153.12,153.03,0.12549]
[1723228946905,28.74,153.12,153.03,1.43207534]
[1723228947772,6.5315,153.11,153.06,6.5333]
[1723228949575,6.5317,153.1,153.05,6.5337]
[1723228949895,28.74,153.1,153.04,6.5341]
[1723228950403,35.2717,153.1,153.05,6.5338]
[1723228950993,28.74,153.1,153.05,6.5338]
[1723228951299,6.5321,153.09,153.01,6.32438]
[1723228951491,35.2717,153.1,153.05,6.5337]
[1723228951694,28.74,153.1,153.02,0.25098]
[1723228952008,288.4694,153.16,153.11,6.531]
[1723228952174,35.2694,153.16,153.11,6.531]
[1723228952495,6.53,153.14,153.09,6.532]
[1723228952871,6.5305,153.13,153.08,6.5325]
[1723228953395,6.5305,153.13,153.09,6.532]
[1723228953691,12.92182292,153.17,153.02,16.2831]
[1723228953692,28.74,153.1,153.02,16.2831]
[1723228953991,28.74,153.08,153.04,6.5341]
[1723228954176,28.74,153.08,153.02,16.2831]
[1723228954401,6.533,153.07,153.02,6.5347]
[1723228955175,28.74,153.08,153.04,6.5341]
[1723228955377,35.2716,153.1,153.05,6.5338]
[1723228955595,20.0,153.09,153.05,6.5338]
[1723228955781,20.0,153.09,153.06,6.5333]
[1723228955978,15.8488,153.11,153.02,28.74]
[1723228956175,16.324,153.15,153.03,1.43197212]
[1723228956176,28.74,153.14,153.03,1.43197212]
[1723228956380,28.74,153.14,153.04,35.51677]
[1723228956574,28.74,153.14,153.07,6.5325]
[1723228956791,28.74,153.12,153.07,6.5325]
[1723228957488,35.2708,153.12,153.07,6.5325]
[1723228957682,28.74,153.12,153.07,6.5325]
[1723228957886,6.5313,153.11,153.06,6.5333]
[1723228958195,35.2708,153.12,153.07,6.5327]
[1723228958402,35.2708,153.12,153.08,6.5325]
[1723228958597,28.74,153.12,153.08,6.5325]
[1723228958795,28.74,153.12,153.07,6.5329]
[1723228959298,6.5313,153.11,153.06,6.5332]
[1723228959504,35.2708,153.12,153.08,6.5324]
[1723228960411,6.5321,153.09,153.03,0.12549]
[1723228960578,35.2717,153.1,153.05,6.5334]
[1723228960778,28.74,153.1,153.06,6.5333]
[1723228961977,28.74,153.1,153.03,0.12549]
[1723228962292,28.74,153.1,153.0,35.0175]
[1723228962490,6.5325,153.09,153.01,0.25098]
[1723228962902,6.5325,153.09,153.0,35.0175]
[1723228963074,28.74,153.1,153.01,1.30670855]
[1723228963276,28.74,153.1,153.07,6.5328]
[1723228963476,35.2708,153.12,153.07,6.5328]
[1723228965079,6.53,153.14,153.09,6.532]
[1723228965899,28.74,153.12,153.02,28.74]
[1723228966204,6.5312,153.11,153.06,6.5333]
[1723228967185,28.74,153.12,153.04,6.5338]
[1723228967186,6.5317,153.1,153.04,6.5338]
[1723228967385,35.2717,153.1,153.05,6.5335]
[1723228967698,6.5324,153.09,153.04,6.5341]
[1723228967891,35.2726,153.08,153.03,6.5345]
[1723228968075,35.2726,153.08,153.03,6.5346]
[1723228968076,6.533,153.07,153.03,6.5346]
[1723228968279,6.5325,153.09,153.05,6.5337]
[1723228968693,6.5321,153.09,153.05,6.5337]
[1723228969987,35.2725,153.08,153.03,6.5343]
[1723228970404,6.533,153.07,153.0,6.2775]
[1723228970697,6.5333,153.06,153.0,6.2775]
[1723228970915,28.74,153.02,152.96,6.1737]
[1723228971096,35.2751,153.02,152.96,6.1737]
[1723228971297,6.5355,153.01,152.97,6.5371]
[1723228971480,35.2759,153.0,152.96,6.5376]
[1723228971683,35.2759,153.0,152.95,6.538]
[1723228972103,35.2759,153.0,152.96,6.5376]
[1723228972311,28.74,153.0,152.96,6.5376]
[1723228973503,28.74,153.0,152.97,6.537]
[1723228973808,15.4999,153.01,152.97,6.537]
[1723228974304,15.4999,153.01,152.98,6.5367]
[1723228974515,15.4999,153.01,152.98,6.5364]
[1723228974717,15.4999,153.01,152.92,43.148]
[1723228975015,15.4999,153.01,152.96,6.5373]
[1723228975016,22.0356,153.01,152.96,6.5373]
[1723228975897,6.536,153.0,152.96,6.5373]
[1723228976381,43.506,153.0,152.95,6.538]
[1723228976792,43.506,153.0,152.96,6.5375]
[1723228976982,43.506,153.0,152.95,6.5379]
[1723228977202,6.5364,152.99,152.95,6.5379]
[1723228977383,51.5364,152.99,152.95,6.5379]
[1723228977806,45.0,152.99,152.95,6.5379]
[1723228978193,51.5365,152.99,152.95,6.538]
[1723228978518,45.0,152.99,152.89,22.1682]
[1723228978814,45.0,152.99,152.95,6.538]
[1723228980803,37.09549,152.98,152.89,22.1682]
[1723228981104,6.66369,152.95,152.85,21.422]
[1723228981304,6.66369,152.95,152.9,6.5399]
[1723228981305,97.566,152.94,152.9,6.5399]
[1723228981608,15.596,152.98,152.95,6.5379]
[1723228981794,15.596,152.98,152.94,6.5384]
[1723228982011,22.1328,152.98,152.94,6.5384]
[1723228982189,22.1328,152.98,152.93,6.5388]
[1723228982808,59.1028,152.98,152.93,6.5388]
[1723228983008,15.596,152.98,152.88,36.97]
[1723228983211,15.596,152.98,152.89,0.25098]
[1723228983391,22.1328,152.98,152.93,6.5388]
[1723228983584,22.1328,152.98,152.94,6.5384]
[1723228983809,15.596,152.98,152.94,6.5384]
[1723228984305,15.596,152.98,152.89,0.12549]
[1723228984487,45.0,152.97,152.93,6.5387]
[1723228985292,22.1329,152.98,152.93,6.5387]
[1723228985493,22.1329,152.98,152.94,6.5383]
[1723228985887,6.5373,152.97,152.92,6.5393]
[1723228986302,59.1028,152.98,152.88,1.43336706]
[1723228986507,52.566,152.98,152.95,6.538]
[1723228986709,15.596,152.98,152.95,6.538]
[1723228986905,15.596,152.98,152.88,38.40336706]
[1723228987087,52.2176,153.02,152.97,6.5372]
[1723228987303,6.5356,153.01,152.97,6.5372]
[1723228987532,6.5362,153.0,152.9,38.27751577]
[1723228987689,6.5362,153.0,152.91,0.25098]
[1723228988004,59.02165103,153.02,152.91,1.55857871]
[1723228988207,51.5358,153.01,152.96,6.5372]
[1723228990027,6.536,153.0,152.96,6.5372]
[1723228990238,6.536,153.0,152.95,6.5379]
[1723228990403,45.0,153.01,152.92,6.5851]
[1723228990729,45.0,153.01,152.93,6.5388]
[1723228990730,6.5368,152.98,152.93,6.5388]
[1723228991113,43.5061,153.0,152.92,6.5851]
[1723228991622,43.5061,153.0,152.88,53.1207]
[1723228991623,36.97,152.96,152.88,22.2047]
[1723228991807,43.5086,152.94,152.84,21.4869]
[1723228992207,6.539,152.93,152.84,21.4869]
[1723228992602,36.97,152.94,152.84,21.4869]
[1723228992603,6.5394,152.92,152.84,21.4869]
[1723228992833,43.5094,152.92,152.84,21.4869]
[1723228993215,36.97,152.92,152.8,59.5277]
[1723228993417,43.5102,152.9,152.85,6.5423]
[1723228994323,36.97,152.9,152.8,22.5577]
[1723228994811,36.97,152.9,152.81,20.0]
[1723228995132,36.97,152.9,152.86,6.5415]
[1723228995312,43.5094,152.92,152.86,6.5415]
[1723228995818,28.8,152.9,152.86,6.5415]
[1723228996538,0.12549,152.94,152.84,28.8]
[1723228996539,28.8,152.94,152.84,28.8]
[1723228996825,28.8,152.96,152.87,6.1668]
[1723228997037,21.83753569,152.99,152.95,6.5378]
[1723228997208,35.3359,153.0,152.95,6.5378]
[1723228997505,28.8,153.0,152.96,6.5376]
[1723228997706,28.8,153.0,152.94,6.5381]
[1723228997901,28.8,153.0,152.93,6.5388]
[1723228998138,28.8,152.98,152.92,6.5393]
[1723228998305,28.8,152.98,152.88,28.8]
[1723228998306,35.338,152.96,152.91,6.5397]
[1723228998813,35.3368,152.98,152.93,6.5385]
[1723228999440,28.8,152.98,152.94,6.5384]
[1723228999624,35.3354,153.02,152.92,28.8]
[1723228999827,6.5363,153.0,152.95,6.538]
[1723229000439,6.5363,153.0,152.75,10.24180485]
[1723229000440,6.544,152.82,152.75,10.24180485]
[1723229000641,6.5427,152.85,152.74,6.0284]
[1723229000844,36.97,152.84,152.74,6.0284]
[1723229001131,6.5433,152.83,152.74,6.0284]
[1723229001339,43.5128,152.84,152.74,6.0284]
[1723229001635,6.5424,152.85,152.74,44.30728307]
[1723229002232,6.5424,152.85,152.75,20.0]
[1723229002426,36.97,152.86,152.75,20.0]
[1723229002731,36.97,152.86,152.77,0.12549]
[1723229002945,43.5119,152.86,152.77,0.12549]
[1723229003237,43.5119,152.86,152.77,0.25098]
[1723229003421,36.97,152.86,152.77,0.12549]
[1723229004309,43.5123,152.86,152.77,0.12549]
[1723229004508,36.97,152.86,152.77,0.12549]
[1723229004714,43.5119,152.86,152.76,0.25098]
[1723229005307,6.5425,152.85,152.76,45.25098]
[1723229005519,6.5425,152.85,152.76,0.25098]
[1723229005716,43.5119,152.86,152.76,0.25098]
[1723229006424,36.97,152.86,152.76,0.25098]
[1723229007944,36.97,152.86,152.77,0.25098]
[1723229008243,43.5121,152.86,152.78,0.12549]
[1723229008445,36.97,152.86,152.78,0.12549]
[1723229008740,43.5119,152.86,152.78,0.12549]
[1723229009233,36.97,152.86,152.77,0.37647]
[1723229009437,43.512,152.86,152.77,0.12549]
[1723229009641,36.97,152.86,152.77,0.25098]